[Event "Early-Titled-Tuesday-Blitz-March-12-2024"]
[Site "Chess.com"]
[Date "2024.03.12"]
[Round "6"]
[White "viktorskliarov"]
[Black "BogdanDeac"]
[Result "0-1"]
[WhiteElo "2590"]
[BlackElo "3042"]
[TimeControl "180+1"]
[EndTime "9:04:27 PDT"]
[Termination "BogdanDeac won by resignation"]

1. e4 {[%clk 0:03:00.9]} 1... c6 {[%clk 0:03:00]} 2. d4 {[%clk 0:03:00]} 2... d5
{[%clk 0:03:00.9]} 3. e5 {[%clk 0:02:58]} 3... Bf5 {[%clk 0:03:00.2]} 4. Nf3
{[%clk 0:02:58.6]} 4... e6 {[%clk 0:03:00.3]} 5. Be2 {[%clk 0:02:59.1]} 5... c5
{[%clk 0:03:00.6]} 6. Be3 {[%clk 0:02:58.6]} 6... cxd4 {[%clk 0:03:00.6]} 7.
Nxd4 {[%clk 0:02:58.4]} 7... Ne7 {[%clk 0:03:01.1]} 8. O-O {[%clk 0:02:48.8]}
8... Nbc6 {[%clk 0:02:59.8]} 9. c4 {[%clk 0:02:41.5]} 9... Nxd4 {[%clk
0:02:50.9]} 10. Qxd4 {[%clk 0:02:36.4]} 10... Nc6 {[%clk 0:02:49.6]} 11. Qf4
{[%clk 0:02:36.3]} 11... d4 {[%clk 0:02:39.9]} 12. Rd1 {[%clk 0:02:20.4]} 12...
Bc5 {[%clk 0:02:36.6]} 13. Bf3 {[%clk 0:01:54.9]} 13... Qb6 {[%clk 0:02:25.9]}
14. Bxc6+ {[%clk 0:01:32.8]} 14... bxc6 {[%clk 0:02:25.1]} 15. Bc1 {[%clk
0:01:32.6]} 15... O-O {[%clk 0:02:21.5]} 16. Nd2 {[%clk 0:01:21.4]} 16... Bc2
{[%clk 0:02:16.1]} 17. Re1 {[%clk 0:01:12.3]} 17... a5 {[%clk 0:02:14.6]} 18.
Ne4 {[%clk 0:01:07.7]} 18... Bxe4 {[%clk 0:02:05.5]} 19. Qxe4 {[%clk 0:01:04.8]}
19... d3 {[%clk 0:01:57.5]} 20. Be3 {[%clk 0:00:59.4]} 20... Rfd8 {[%clk
0:01:54.9]} 21. b3 {[%clk 0:00:55.5]} 21... a4 {[%clk 0:01:47.1]} 22. Bxc5
{[%clk 0:00:50.5]} 22... Qxc5 {[%clk 0:01:46.7]} 23. Rad1 {[%clk 0:00:51.2]}
23... axb3 {[%clk 0:01:43.1]} 24. axb3 {[%clk 0:00:52.1]} 24... Qb4 {[%clk
0:01:41.1]} 25. Qxc6 {[%clk 0:00:34.5]} 25... Qxb3 {[%clk 0:01:35.8]} 26. h4
{[%clk 0:00:33.7]} 26... h6 {[%clk 0:01:22.9]} 27. Rd2 {[%clk 0:00:30.4]} 27...
Qc3 {[%clk 0:01:22.1]} 28. Red1 {[%clk 0:00:26.6]} 28... Ra1 {[%clk 0:01:21.7]}
29. Qf3 {[%clk 0:00:17.1]} 29... Rxd1+ {[%clk 0:01:17]} 30. Qxd1 {[%clk
0:00:15.6]} 30... Qxc4 {[%clk 0:01:17.2]} 31. g3 {[%clk 0:00:16.2]} 31... Qc3
{[%clk 0:01:17]} 32. Kg2 {[%clk 0:00:15.3]} 32... Qxe5 {[%clk 0:01:15.5]} 0-1

[Event "Early-Titled-Tuesday-Blitz-March-12-2024"]
[Site "Chess.com"]
[Date "2024.03.12"]
[Round "6"]
[White "Alex_Banzea"]
[Black "Kirill_Klukin"]
[Result "1-0"]
[WhiteElo "2641"]
[BlackElo "2806"]
[TimeControl "180+1"]
[EndTime "9:04:33 PDT"]
[Termination "Alex_Banzea won by resignation"]

1. d4 {[%clk 0:03:00.9]} 1... Nf6 {[%clk 0:02:50.8]} 2. Nc3 {[%clk 0:03:01.5]}
2... d5 {[%clk 0:02:50.7]} 3. Bf4 {[%clk 0:03:02.2]} 3... a6 {[%clk 0:02:51.1]}
4. e3 {[%clk 0:03:02.6]} 4... e6 {[%clk 0:02:51.3]} 5. Nf3 {[%clk 0:03:03.2]}
5... c5 {[%clk 0:02:51.2]} 6. dxc5 {[%clk 0:03:04.1]} 6... Bxc5 {[%clk 0:02:51]}
7. Bd3 {[%clk 0:03:04.9]} 7... b5 {[%clk 0:02:51.2]} 8. O-O {[%clk 0:03:05.6]}
8... Bb7 {[%clk 0:02:51.8]} 9. Qe2 {[%clk 0:03:03.7]} 9... O-O {[%clk
0:02:48.4]} 10. a3 {[%clk 0:03:04.3]} 10... Nbd7 {[%clk 0:02:48]} 11. e4 {[%clk
0:03:00.1]} 11... dxe4 {[%clk 0:02:48.2]} 12. Nxe4 {[%clk 0:03:01]} 12... Nxe4
{[%clk 0:02:48.9]} 13. Bxe4 {[%clk 0:03:01.9]} 13... Bxe4 {[%clk 0:02:49.5]} 14.
Qxe4 {[%clk 0:03:02.8]} 14... Nf6 {[%clk 0:02:50.2]} 15. Qe2 {[%clk 0:03:01.3]}
15... Nd5 {[%clk 0:02:50.2]} 16. Bg3 {[%clk 0:02:58.5]} 16... Rc8 {[%clk
0:02:50]} 17. Rac1 {[%clk 0:02:48.4]} 17... Qf6 {[%clk 0:02:46.9]} 18. c4 {[%clk
0:02:45.8]} 18... Nf4 {[%clk 0:02:32]} 19. Qe4 {[%clk 0:02:27.7]} 19... Ng6
{[%clk 0:02:18.7]} 20. b4 {[%clk 0:02:19.8]} 20... Be7 {[%clk 0:02:08.3]} 21. c5
{[%clk 0:02:11.2]} 21... Qb2 {[%clk 0:02:05.2]} 22. h4 {[%clk 0:02:01.2]} 22...
h5 {[%clk 0:01:54.2]} 23. Ne5 {[%clk 0:01:54.9]} 23... Nxe5 {[%clk 0:01:48.8]}
24. Bxe5 {[%clk 0:01:55.8]} 24... Qxa3 {[%clk 0:01:40.3]} 25. Rc3 {[%clk
0:01:40.1]} 25... Qa2 {[%clk 0:01:31.3]} 26. Bxg7 {[%clk 0:01:35.4]} 26... Kxg7
{[%clk 0:00:45.8]} 27. Rg3+ {[%clk 0:01:30.4]} 27... Kh6 {[%clk 0:00:46]} 28.
Qf4+ {[%clk 0:01:06.2]} 28... Kh7 {[%clk 0:00:45.8]} 29. Qe5 {[%clk 0:01:07.1]}
1-0

[Event "Early-Titled-Tuesday-Blitz-March-12-2024"]
[Site "Chess.com"]
[Date "2024.03.12"]
[Round "6"]
[White "Rainbow2014"]
[Black "IwkooO"]
[Result "0-1"]
[WhiteElo "2460"]
[BlackElo "2676"]
[TimeControl "180+1"]
[EndTime "9:04:37 PDT"]
[Termination "IwkooO won on time"]

1. e4 {[%clk 0:02:50.2]} 1... c5 {[%clk 0:02:59.4]} 2. Nf3 {[%clk 0:02:46.7]}
2... Nf6 {[%clk 0:03:00.3]} 3. e5 {[%clk 0:02:44.9]} 3... Nd5 {[%clk 0:03:00.8]}
4. Nc3 {[%clk 0:02:44.5]} 4... Nxc3 {[%clk 0:02:59.4]} 5. dxc3 {[%clk
0:02:44.9]} 5... e6 {[%clk 0:03:00.2]} 6. Bf4 {[%clk 0:02:39.8]} 6... Nc6 {[%clk
0:02:59.6]} 7. Bd3 {[%clk 0:02:37]} 7... h6 {[%clk 0:02:59.2]} 8. O-O {[%clk
0:02:37]} 8... Qc7 {[%clk 0:02:59.2]} 9. Qe2 {[%clk 0:02:36.3]} 9... b6 {[%clk
0:02:59.8]} 10. Rad1 {[%clk 0:02:33.5]} 10... Bb7 {[%clk 0:03:00.2]} 11. a4
{[%clk 0:02:31.8]} 11... O-O-O {[%clk 0:02:55.8]} 12. Bg3 {[%clk 0:02:19.6]}
12... d5 {[%clk 0:02:54]} 13. c4 {[%clk 0:02:06.1]} 13... Be7 {[%clk 0:02:49.6]}
14. cxd5 {[%clk 0:02:03.8]} 14... Rxd5 {[%clk 0:02:50.5]} 15. Be4 {[%clk
0:01:56.6]} 15... Rxd1 {[%clk 0:02:50.5]} 16. Rxd1 {[%clk 0:01:56.8]} 16... Rd8
{[%clk 0:02:51.2]} 17. c3 {[%clk 0:01:54]} 17... Rxd1+ {[%clk 0:02:44.2]} 18.
Qxd1 {[%clk 0:01:54.9]} 18... Qd7 {[%clk 0:02:44.6]} 19. Qxd7+ {[%clk
0:01:44.8]} 19... Kxd7 {[%clk 0:02:45.5]} 20. Kf1 {[%clk 0:01:39]} 20... Ba6+
{[%clk 0:02:42]} 21. Ke1 {[%clk 0:01:37.1]} 21... Na5 {[%clk 0:02:42.6]} 22. Nd2
{[%clk 0:01:33.9]} 22... Nc4 {[%clk 0:02:38.8]} 23. Nxc4 {[%clk 0:01:32.9]}
23... Bxc4 {[%clk 0:02:39.7]} 24. Bc2 {[%clk 0:01:15.1]} 24... Bd5 {[%clk
0:02:39.6]} 25. f3 {[%clk 0:01:11.7]} 25... Bg5 {[%clk 0:02:39.3]} 26. b3 {[%clk
0:01:03.9]} 26... c4 {[%clk 0:02:32.6]} 27. b4 {[%clk 0:00:58.1]} 27... Kc6
{[%clk 0:02:29.2]} 28. Be4 {[%clk 0:00:43.9]} 28... a5 {[%clk 0:02:22.3]} 29.
b5+ {[%clk 0:00:36.6]} 29... Kd7 {[%clk 0:02:21.7]} 30. Bf2 {[%clk 0:00:20.7]}
30... Bd8 {[%clk 0:02:15.3]} 31. Ke2 {[%clk 0:00:15.5]} 31... Bc7 {[%clk
0:02:08.6]} 32. Bd4 {[%clk 0:00:14.3]} 32... g6 {[%clk 0:01:56.8]} 33. Ke3
{[%clk 0:00:13.5]} 33... Ke7 {[%clk 0:01:54.7]} 34. f4 {[%clk 0:00:13.4]} 34...
Kd7 {[%clk 0:01:52.6]} 35. g4 {[%clk 0:00:13.6]} 35... Ke7 {[%clk 0:01:52.5]}
36. h3 {[%clk 0:00:13.4]} 36... Kd7 {[%clk 0:01:52.4]} 37. Kf3 {[%clk
0:00:12.8]} 37... Bd8 {[%clk 0:01:51.9]} 38. Ke3 {[%clk 0:00:12.4]} 38... Bc7
{[%clk 0:01:48.1]} 39. f5 {[%clk 0:00:08.5]} 39... gxf5 {[%clk 0:01:46.7]} 40.
gxf5 {[%clk 0:00:08.9]} 40... Bxe4 {[%clk 0:01:39.6]} 41. Kf4 {[%clk 0:00:09]}
41... Bxf5 {[%clk 0:01:37.3]} 42. h4 {[%clk 0:00:05.8]} 42... Bd8 {[%clk
0:01:37.2]} 43. h5 {[%clk 0:00:04.9]} 43... Kc7 {[%clk 0:01:37]} 44. Kf3 {[%clk
0:00:04.2]} 44... Bg5 {[%clk 0:01:37.4]} 0-1

[Event "Early-Titled-Tuesday-Blitz-March-12-2024"]
[Site "Chess.com"]
[Date "2024.03.12"]
[Round "6"]
[White "EpicPlayz282"]
[Black "masnyszachistaaa"]
[Result "1-0"]
[WhiteElo "2366"]
[BlackElo "2549"]
[TimeControl "180+1"]
[EndTime "9:04:44 PDT"]
[Termination "EpicPlayz282 won on time"]

1. e4 {[%clk 0:02:54.7]} 1... d6 {[%clk 0:02:55.9]} 2. d4 {[%clk 0:02:54.4]}
2... Nf6 {[%clk 0:02:55.6]} 3. Nc3 {[%clk 0:02:54.8]} 3... e5 {[%clk 0:02:55.6]}
4. dxe5 {[%clk 0:02:54.5]} 4... dxe5 {[%clk 0:02:56.5]} 5. Qxd8+ {[%clk
0:02:54.4]} 5... Kxd8 {[%clk 0:02:57.4]} 6. Bc4 {[%clk 0:02:52.7]} 6... Ke7
{[%clk 0:02:49.5]} 7. Nf3 {[%clk 0:02:51.1]} 7... Nbd7 {[%clk 0:02:39.9]} 8. Ng5
{[%clk 0:02:49.1]} 8... Nb6 {[%clk 0:02:30.8]} 9. Bb3 {[%clk 0:02:45.5]} 9...
Be6 {[%clk 0:02:29.6]} 10. Nxe6 {[%clk 0:02:45.6]} 10... fxe6 {[%clk 0:02:30.5]}
11. f4 {[%clk 0:02:42.2]} 11... exf4 {[%clk 0:02:15.7]} 12. Bxf4 {[%clk
0:02:41.6]} 12... c6 {[%clk 0:02:07.8]} 13. O-O-O {[%clk 0:02:39.4]} 13... Re8
{[%clk 0:01:46.1]} 14. Rhf1 {[%clk 0:02:32.3]} 14... Nc8 {[%clk 0:01:38.1]} 15.
e5 {[%clk 0:02:25.7]} 15... Nd5 {[%clk 0:01:38.2]} 16. Bg5+ {[%clk 0:02:25.9]}
16... Kd7 {[%clk 0:01:36.5]} 17. Nxd5 {[%clk 0:02:18.8]} 17... exd5 {[%clk
0:01:29.9]} 18. Rxd5+ {[%clk 0:02:06.7]} 18... cxd5 {[%clk 0:01:22.5]} 19. Ba4+
{[%clk 0:02:06.6]} 19... Ke6 {[%clk 0:01:16.2]} 20. Bxe8 {[%clk 0:02:06.5]}
20... Be7 {[%clk 0:00:40.8]} 21. Bf7+ {[%clk 0:02:00.7]} 21... Kxe5 {[%clk
0:00:40.9]} 22. Bf4+ {[%clk 0:01:54.4]} 22... Ke4 {[%clk 0:00:35.5]} 23. g3
{[%clk 0:01:50]} 23... Bf6 {[%clk 0:00:25.6]} 24. Re1+ {[%clk 0:01:48.7]} 24...
Kf3 {[%clk 0:00:20.5]} 25. Bxd5+ {[%clk 0:01:43.5]} 25... Kf2 {[%clk 0:00:19.7]}
26. Rd1 {[%clk 0:01:38.5]} 26... b6 {[%clk 0:00:18.9]} 27. Rd2+ {[%clk
0:01:38.1]} 27... Ke1 {[%clk 0:00:15.6]} 28. Be3 {[%clk 0:01:29.5]} 28... Ne7
{[%clk 0:00:09.1]} 29. Bc4 {[%clk 0:01:26.5]} 29... Bxb2+ {[%clk 0:00:02.5]} 30.
Kxb2 {[%clk 0:01:25.8]} 30... Nf5 {[%clk 0:00:02.8]} 31. Re2+ {[%clk 0:01:04.3]}
31... Kd1 {[%clk 0:00:02.5]} 32. Bf4 {[%clk 0:01:02]} 1-0

[Event "Early-Titled-Tuesday-Blitz-March-12-2024"]
[Site "Chess.com"]
[Date "2024.03.12"]
[Round "6"]
[White "HansOnTwitch"]
[Black "Nitzan_Steinberg"]
[Result "1-0"]
[WhiteElo "3102"]
[BlackElo "2903"]
[TimeControl "180+1"]
[EndTime "9:04:45 PDT"]
[Termination "HansOnTwitch won by resignation"]

1. e4 {[%clk 0:03:00.9]} 1... c5 {[%clk 0:02:58.6]} 2. Nf3 {[%clk 0:03:00.5]}
2... d6 {[%clk 0:02:59.2]} 3. Bb5+ {[%clk 0:02:59.6]} 3... Bd7 {[%clk
0:02:58.9]} 4. c4 {[%clk 0:02:59.1]} 4... Nf6 {[%clk 0:02:57.4]} 5. Nc3 {[%clk
0:02:59.3]} 5... g6 {[%clk 0:02:58.1]} 6. O-O {[%clk 0:02:58.4]} 6... Bg7 {[%clk
0:02:58.5]} 7. d4 {[%clk 0:02:58.7]} 7... cxd4 {[%clk 0:02:57.7]} 8. Nxd4 {[%clk
0:02:59.6]} 8... O-O {[%clk 0:02:57.5]} 9. Bxd7 {[%clk 0:02:58]} 9... Qxd7
{[%clk 0:02:55.4]} 10. f3 {[%clk 0:02:58.1]} 10... Nc6 {[%clk 0:02:55.8]} 11.
Be3 {[%clk 0:02:57.5]} 11... Rac8 {[%clk 0:02:49.7]} 12. b3 {[%clk 0:02:56.4]}
12... a6 {[%clk 0:02:48.9]} 13. Nde2 {[%clk 0:02:51.5]} 13... Ne5 {[%clk
0:02:29.4]} 14. a4 {[%clk 0:02:49.2]} 14... e6 {[%clk 0:02:17.8]} 15. Qd2 {[%clk
0:02:48.3]} 15... d5 {[%clk 0:02:16.7]} 16. cxd5 {[%clk 0:02:45.5]} 16... exd5
{[%clk 0:02:16.8]} 17. exd5 {[%clk 0:02:45.7]} 17... Rfe8 {[%clk 0:02:14.5]} 18.
Rfd1 {[%clk 0:02:43.6]} 18... h5 {[%clk 0:02:09.8]} 19. Rac1 {[%clk 0:02:43]}
19... h4 {[%clk 0:02:08.9]} 20. h3 {[%clk 0:02:38.2]} 20... Nxf3+ {[%clk
0:02:01.5]} 21. gxf3 {[%clk 0:02:37.8]} 21... Qxh3 {[%clk 0:02:01.8]} 22. Bf2
{[%clk 0:02:36.2]} 22... Nh5 {[%clk 0:01:43.8]} 23. Qg5 {[%clk 0:02:32.7]} 23...
Bxc3 {[%clk 0:01:22.5]} 24. Nxc3 {[%clk 0:02:13.6]} 24... Qxf3 {[%clk
0:01:22.5]} 25. Qg2 {[%clk 0:02:00.1]} 25... Rxc3 {[%clk 0:01:21.7]} 26. Qxf3
{[%clk 0:01:59.2]} 26... Rxf3 {[%clk 0:01:22]} 27. d6 {[%clk 0:01:59]} 27... Nf4
{[%clk 0:00:59.3]} 28. d7 {[%clk 0:01:57]} 28... Nh3+ {[%clk 0:00:36.9]} 29. Kg2
{[%clk 0:01:53.5]} 29... Rxf2+ {[%clk 0:00:37.1]} 30. Kxh3 {[%clk 0:01:54]}
30... Re3+ {[%clk 0:00:33.7]} 31. Kxh4 {[%clk 0:01:39.9]} 31... Rf4+ {[%clk
0:00:11.4]} 32. Kg5 {[%clk 0:01:39]} 32... Ree4 {[%clk 0:00:08.2]} 33. d8=Q+
{[%clk 0:01:35.4]} 33... Kg7 {[%clk 0:00:08.8]} 34. Qd7 {[%clk 0:01:20.9]} 34...
Rh4 {[%clk 0:00:09.1]} 35. Rh1 {[%clk 0:01:14.4]} 35... Reg4+ {[%clk 0:00:02.7]}
36. Qxg4 {[%clk 0:01:13.9]} 36... f6+ {[%clk 0:00:03.3]} 37. Kxh4 {[%clk
0:01:14.2]} 1-0

[Event "Early-Titled-Tuesday-Blitz-March-12-2024"]
[Site "Chess.com"]
[Date "2024.03.12"]
[Round "6"]
[White "Statham_01"]
[Black "JoliyRoger"]
[Result "1-0"]
[WhiteElo "2585"]
[BlackElo "2422"]
[TimeControl "180+1"]
[EndTime "9:04:50 PDT"]
[Termination "Statham_01 won on time"]

1. Nc3 {[%clk 0:03:00.9]} 1... d5 {[%clk 0:02:56.6]} 2. d4 {[%clk 0:02:59.9]}
2... c6 {[%clk 0:02:39.3]} 3. e4 {[%clk 0:02:57.4]} 3... dxe4 {[%clk 0:02:39.5]}
4. Nxe4 {[%clk 0:02:58.3]} 4... Bf5 {[%clk 0:02:39.7]} 5. Ng3 {[%clk 0:02:58.2]}
5... Bg6 {[%clk 0:02:40.3]} 6. h4 {[%clk 0:02:58.7]} 6... h6 {[%clk 0:02:40.3]}
7. Bd3 {[%clk 0:02:57.5]} 7... Bxd3 {[%clk 0:02:39.6]} 8. Qxd3 {[%clk
0:02:58.4]} 8... Nd7 {[%clk 0:02:40.1]} 9. f4 {[%clk 0:02:58.2]} 9... e6 {[%clk
0:02:39.1]} 10. Nf3 {[%clk 0:02:57.9]} 10... Ngf6 {[%clk 0:02:31]} 11. Bd2
{[%clk 0:02:56.5]} 11... Bd6 {[%clk 0:02:30.8]} 12. O-O-O {[%clk 0:02:56]} 12...
Qc7 {[%clk 0:02:31.1]} 13. Ne5 {[%clk 0:02:56]} 13... c5 {[%clk 0:01:59.9]} 14.
h5 {[%clk 0:02:39.8]} 14... O-O {[%clk 0:01:51.8]} 15. Bc3 {[%clk 0:02:32.1]}
15... Nd5 {[%clk 0:01:46.2]} 16. Ne4 {[%clk 0:02:24.1]} 16... Nxc3 {[%clk
0:01:28.2]} 17. Qxc3 {[%clk 0:02:18.4]} 17... Bxe5 {[%clk 0:01:13.1]} 18. dxe5
{[%clk 0:02:15.9]} 18... Rfd8 {[%clk 0:01:01.5]} 19. g4 {[%clk 0:02:14.9]} 19...
Qc6 {[%clk 0:00:47.7]} 20. Qe3 {[%clk 0:02:05.5]} 20... Nb6 {[%clk 0:00:43.9]}
21. g5 {[%clk 0:02:00.3]} 21... Nc4 {[%clk 0:00:35.8]} 22. Qe2 {[%clk
0:01:49.6]} 22... hxg5 {[%clk 0:00:34]} 23. Qxc4 {[%clk 0:01:44.8]} 23... Rxd1+
{[%clk 0:00:31.3]} 24. Rxd1 {[%clk 0:01:44.3]} 24... gxf4 {[%clk 0:00:32.2]} 25.
Rg1 {[%clk 0:01:41.9]} 25... b5 {[%clk 0:00:28.5]} 26. Nf6+ {[%clk 0:01:41]}
26... Kf8 {[%clk 0:00:19.3]} 27. Qxc5+ {[%clk 0:01:40.3]} 27... Qxc5 {[%clk
0:00:18.7]} 28. Nd7+ {[%clk 0:01:40.7]} 28... Ke7 {[%clk 0:00:16.1]} 29. Nxc5
{[%clk 0:01:41.6]} 29... Rh8 {[%clk 0:00:16.5]} 30. Rg5 {[%clk 0:01:37.6]} 30...
f3 {[%clk 0:00:13.8]} 31. Kd2 {[%clk 0:01:37.6]} 31... Rh7 {[%clk 0:00:07.1]}
32. Ke3 {[%clk 0:01:36.2]} 32... f6 {[%clk 0:00:07.7]} 33. Rg3 {[%clk
0:01:30.4]} 33... fxe5 {[%clk 0:00:08]} 34. Ne4 {[%clk 0:01:27.1]} 34... Kd7
{[%clk 0:00:03.1]} 35. Rg5 {[%clk 0:01:20.1]} 35... Kc6 {[%clk 0:00:02.3]} 36.
Kxf3 {[%clk 0:01:20]} 1-0

[Event "Early-Titled-Tuesday-Blitz-March-12-2024"]
[Site "Chess.com"]
[Date "2024.03.12"]
[Round "6"]
[White "jumpingknight20"]
[Black "falzehope0"]
[Result "1-0"]
[WhiteElo "2687"]
[BlackElo "2443"]
[TimeControl "180+1"]
[EndTime "9:04:55 PDT"]
[Termination "jumpingknight20 won by resignation"]

1. Nf3 {[%clk 0:03:00.9]} 1... d5 {[%clk 0:02:58]} 2. b3 {[%clk 0:03:00.2]} 2...
e6 {[%clk 0:02:56.9]} 3. Bb2 {[%clk 0:03:00.3]} 3... f5 {[%clk 0:02:57.7]} 4. g3
{[%clk 0:02:57.2]} 4... Nf6 {[%clk 0:02:58.1]} 5. Bg2 {[%clk 0:02:57.8]} 5...
Bd6 {[%clk 0:02:58.8]} 6. O-O {[%clk 0:02:58.5]} 6... f4 {[%clk 0:02:59.1]} 7.
c4 {[%clk 0:02:53.9]} 7... fxg3 {[%clk 0:02:58.1]} 8. hxg3 {[%clk 0:02:53.2]}
8... O-O {[%clk 0:02:57.5]} 9. d3 {[%clk 0:02:51.5]} 9... Ng4 {[%clk 0:02:51.8]}
10. e4 {[%clk 0:02:49.1]} 10... Qe8 {[%clk 0:02:49.1]} 11. e5 {[%clk 0:02:39.4]}
11... Qh5 {[%clk 0:02:44.2]} 12. Nh4 {[%clk 0:02:14.5]} 12... Be7 {[%clk
0:02:26.9]} 13. Bh3 {[%clk 0:02:06.9]} 13... Nxf2 {[%clk 0:01:20]} 14. Qxh5
{[%clk 0:02:00.7]} 14... Nxh3+ {[%clk 0:01:19.4]} 15. Kg2 {[%clk 0:01:59.8]}
15... Rxf1 {[%clk 0:01:01.9]} 16. Kxf1 {[%clk 0:02:00.7]} 16... Bd7 {[%clk
0:00:46.6]} 17. Nf3 {[%clk 0:01:55.6]} 17... dxc4 {[%clk 0:00:33.8]} 18. bxc4
{[%clk 0:01:51.2]} 18... Bc6 {[%clk 0:00:30.7]} 19. Nbd2 {[%clk 0:01:49.3]}
19... Na6 {[%clk 0:00:21.7]} 20. Qxh3 {[%clk 0:01:48.2]} 20... Rf8 {[%clk
0:00:21.8]} 21. Ke2 {[%clk 0:01:45.7]} 21... Nb4 {[%clk 0:00:16.7]} 22. a3
{[%clk 0:01:41.7]} 22... Na6 {[%clk 0:00:15.3]} 23. Rh1 {[%clk 0:01:40.7]} 23...
Kf7 {[%clk 0:00:11.8]} 24. Rf1 {[%clk 0:01:37.6]} 24... Ke8 {[%clk 0:00:10.8]}
25. Nd4 {[%clk 0:01:35.6]} 25... Bd7 {[%clk 0:00:10.4]} 26. Rxf8+ {[%clk
0:01:34.6]} 26... Bxf8 {[%clk 0:00:11.3]} 27. Qxh7 {[%clk 0:01:33.8]} 27... Nc5
{[%clk 0:00:10.6]} 28. Qg6+ {[%clk 0:01:33.2]} 28... Kd8 {[%clk 0:00:10.7]} 29.
Ne4 {[%clk 0:01:31.7]} 29... Be8 {[%clk 0:00:10.4]} 30. Qg5+ {[%clk 0:01:29.4]}
30... Be7 {[%clk 0:00:10.6]} 31. Qxg7 {[%clk 0:01:18.7]} 31... Bh5+ {[%clk
0:00:10.2]} 32. g4 {[%clk 0:01:18.4]} 32... Nxe4 {[%clk 0:00:09.6]} 33. gxh5
{[%clk 0:01:17.3]} 33... Ng5 {[%clk 0:00:09]} 34. h6 {[%clk 0:01:17.7]} 34... c6
{[%clk 0:00:08.2]} 35. h7 {[%clk 0:01:17.9]} 35... Nxh7 {[%clk 0:00:08.1]} 36.
Qxh7 {[%clk 0:01:18.8]} 36... Kd7 {[%clk 0:00:08.2]} 37. Qg6 {[%clk 0:01:18.3]}
37... Kd8 {[%clk 0:00:07.6]} 38. Qxe6 {[%clk 0:01:18.4]} 38... a6 {[%clk
0:00:06.7]} 39. Nf5 {[%clk 0:01:18.5]} 39... Bg5 {[%clk 0:00:06.9]} 40. Qd6+
{[%clk 0:01:18.1]} 40... Kc8 {[%clk 0:00:07.4]} 41. e6 {[%clk 0:01:17.6]} 41...
a5 {[%clk 0:00:06.1]} 42. e7 {[%clk 0:01:17.7]} 1-0

[Event "Early-Titled-Tuesday-Blitz-March-12-2024"]
[Site "Chess.com"]
[Date "2024.03.12"]
[Round "6"]
[White "MikeWizard"]
[Black "David_ATM"]
[Result "1/2-1/2"]
[WhiteElo "2084"]
[BlackElo "2372"]
[TimeControl "180+1"]
[EndTime "9:04:55 PDT"]
[Termination "Game drawn by repetition"]

1. d3 {[%clk 0:02:44.6]} 1... d5 {[%clk 0:02:59.5]} 2. Nf3 {[%clk 0:02:42.7]}
2... Nf6 {[%clk 0:02:58.9]} 3. g3 {[%clk 0:02:42.7]} 3... g6 {[%clk 0:02:58.6]}
4. Bg2 {[%clk 0:02:42.7]} 4... Bg7 {[%clk 0:02:59.3]} 5. O-O {[%clk 0:02:42.5]}
5... O-O {[%clk 0:03:00]} 6. Nbd2 {[%clk 0:02:35.9]} 6... c6 {[%clk 0:02:58.7]}
7. e4 {[%clk 0:02:35.8]} 7... dxe4 {[%clk 0:02:58.9]} 8. Nxe4 {[%clk 0:02:34.9]}
8... Nxe4 {[%clk 0:02:58.4]} 9. dxe4 {[%clk 0:02:34.8]} 9... Qxd1 {[%clk
0:02:51.2]} 10. Rxd1 {[%clk 0:02:33.9]} 10... Bg4 {[%clk 0:02:51.1]} 11. c3
{[%clk 0:02:29.6]} 11... h6 {[%clk 0:02:31.9]} 12. h3 {[%clk 0:02:27.4]} 12...
Be6 {[%clk 0:02:32.1]} 13. Nd4 {[%clk 0:02:23]} 13... Bc4 {[%clk 0:02:31.4]} 14.
b3 {[%clk 0:02:19.1]} 14... Ba6 {[%clk 0:02:30.4]} 15. Bb2 {[%clk 0:02:13.5]}
15... Rd8 {[%clk 0:02:19.9]} 16. c4 {[%clk 0:02:11]} 16... c5 {[%clk 0:01:57.6]}
17. Ne6 {[%clk 0:01:54.2]} 17... Rxd1+ {[%clk 0:01:55.9]} 18. Rxd1 {[%clk
0:01:53.3]} 18... fxe6 {[%clk 0:01:23.3]} 19. Rd8+ {[%clk 0:01:52.2]} 19... Kf7
{[%clk 0:01:19.7]} 20. e5 {[%clk 0:01:45.2]} 20... h5 {[%clk 0:00:34.1]} 21. Bf3
{[%clk 0:01:35.3]} 21... Bh6 {[%clk 0:00:33.5]} 22. Kf1 {[%clk 0:01:24.9]} 22...
Bd2 {[%clk 0:00:32.6]} 23. Ke2 {[%clk 0:01:23.5]} 23... Ba5 {[%clk 0:00:32.2]}
24. Rh8 {[%clk 0:01:20]} 24... Bc7 {[%clk 0:00:26.5]} 25. h4 {[%clk 0:01:15.3]}
25... Kg7 {[%clk 0:00:23.3]} 26. Re8 {[%clk 0:01:13.5]} 26... Kf7 {[%clk
0:00:23.9]} 27. Rh8 {[%clk 0:01:13.1]} 27... Ba5 {[%clk 0:00:09.7]} 28. Ke3
{[%clk 0:00:59.1]} 28... Bc7 {[%clk 0:00:09]} 29. Kf4 {[%clk 0:00:55.3]} 29...
Kg7 {[%clk 0:00:06.7]} 30. Re8 {[%clk 0:00:54.2]} 30... Kf7 {[%clk 0:00:06.9]}
31. Rh8 {[%clk 0:00:53.9]} 31... Kg7 {[%clk 0:00:05.3]} 32. Re8 {[%clk
0:00:53.6]} 32... Kf7 {[%clk 0:00:04]} 33. Rh8 {[%clk 0:00:53.3]} 1/2-1/2

[Event "Early-Titled-Tuesday-Blitz-March-12-2024"]
[Site "Chess.com"]
[Date "2024.03.12"]
[Round "6"]
[White "Misterfox120"]
[Black "lilylg"]
[Result "1-0"]
[WhiteElo "2407"]
[BlackElo "2164"]
[TimeControl "180+1"]
[EndTime "9:05:02 PDT"]
[Termination "Misterfox120 won on time"]

1. d4 {[%clk 0:03:00.9]} 1... d5 {[%clk 0:02:59.4]} 2. Bf4 {[%clk 0:03:01.2]}
2... e6 {[%clk 0:02:57.7]} 3. e3 {[%clk 0:03:00.8]} 3... f5 {[%clk 0:02:58.3]}
4. Nf3 {[%clk 0:02:53.1]} 4... Nf6 {[%clk 0:02:58.8]} 5. c4 {[%clk 0:02:50.9]}
5... Bd6 {[%clk 0:02:59]} 6. Nc3 {[%clk 0:02:46.2]} 6... c6 {[%clk 0:02:56.9]}
7. Be2 {[%clk 0:02:39.5]} 7... O-O {[%clk 0:02:56.7]} 8. O-O {[%clk 0:02:37.2]}
8... b6 {[%clk 0:02:42.5]} 9. a3 {[%clk 0:02:24.7]} 9... Bb7 {[%clk 0:02:42.5]}
10. b4 {[%clk 0:02:23.8]} 10... Nh5 {[%clk 0:02:27.4]} 11. Bxd6 {[%clk
0:02:16.3]} 11... Qxd6 {[%clk 0:02:26.7]} 12. c5 {[%clk 0:02:13.6]} 12... Qe7
{[%clk 0:02:20.7]} 13. Ne5 {[%clk 0:02:13]} 13... Nf6 {[%clk 0:02:17.7]} 14. f4
{[%clk 0:02:10]} 14... Nbd7 {[%clk 0:02:17.3]} 15. b5 {[%clk 0:01:57.8]} 15...
Nxe5 {[%clk 0:02:13.9]} 16. fxe5 {[%clk 0:01:56.4]} 16... Ne4 {[%clk 0:02:14.8]}
17. Nxe4 {[%clk 0:01:55.9]} 17... fxe4 {[%clk 0:02:14.6]} 18. cxb6 {[%clk
0:01:56.3]} 18... Rxf1+ {[%clk 0:02:10.8]} 19. Bxf1 {[%clk 0:01:47.3]} 19...
axb6 {[%clk 0:02:03.5]} 20. bxc6 {[%clk 0:01:46.7]} 20... Bxc6 {[%clk
0:02:01.7]} 21. Qb3 {[%clk 0:01:45.8]} 21... b5 {[%clk 0:01:07]} 22. Bxb5 {[%clk
0:01:39.1]} 22... Qb7 {[%clk 0:01:02.3]} 23. Rb1 {[%clk 0:01:12.3]} 23... Bxb5
{[%clk 0:00:46.8]} 24. a4 {[%clk 0:01:02.4]} 24... Ra5 {[%clk 0:00:03.3]} 25.
axb5 {[%clk 0:01:01.1]} 25... Qb6 {[%clk 0:00:03.2]} 26. Qb4 {[%clk 0:00:59]}
26... Ra7 {[%clk 0:00:02.1]} 27. Qc5 {[%clk 0:00:48.6]} 27... Rb7 {[%clk
0:00:02.1]} 28. Qc8+ {[%clk 0:00:40.4]} 1-0